Cogmind - Beta 14 @@@ ROGUE MODE // 2024.10.15 @ 15:58:32 Player: THN-L0C Result: Self-destructed Performance ------------- Evolutions (2) 1000 Regions Visited (5) 1000 Robots Destroyed (40) 200 Value Destroyed (1006) 1006 Prototype IDs (26) 520 Alien Tech Used (0) 0 Bonus (311) 311 TOTAL SCORE: 4037 Bonus ------- High Alert Combat Kills 11 Aligned with FarCom 300 Cogmind --------- Core Integrity 404/550 Matter 270/300 Energy 260/265 System Corruption 0% Temperature Cool (0) Movement Treading (145) Location -8/Materials Parts ------- > --- POWER (1) -------- Improved Ion Engine > --- PROPULSION (3) --- Advanced Treads Advanced Treads Advanced Treads > --- UTILITY (4) ------ Improved Heat Sink High-capacity Storage Unit Advanced Targeting Computer Hardened Medium Armor Plating > --- WEAPON (3) ------- Heavy Assault Rifle Heavy Assault Rifle Enhanced Autogun > --- INVENTORY (20) --- Advanced Treads Advanced Treads Advanced Treads Large Matter Pod (150) High-capacity Matter Pod (200) Improved Terrain Scanner Beam Rifle Heavy Particle Cannon YOLO Cannon Heavy Assault Rifle Heavy Assault Rifle Rocket Launcher Plasma Cutter Plasma Cutter Makeshift Spear Peak State ------------ > --- POWER ------------ Nuclear Core > --- PROPULSION ------- Advanced Treads Advanced Treads Advanced Treads > --- UTILITY ---------- Improved Heat Sink High-capacity Storage Unit Advanced Targeting Computer Hardened Medium Armor Plating > --- WEAPON ----------- Heavy Particle Cannon Heavy Assault Rifle Enhanced Autogun > --- INVENTORY -------- Improved Ion Engine Advanced Treads Advanced Treads Advanced Treads Large Matter Pod High-capacity Matter Pod Improved Terrain Scanner Hardened Medium Armor Plating Beam Rifle YOLO Cannon Heavy Assault Rifle Heavy Assault Rifle Heavy Assault Rifle Rocket Launcher Plasma Cutter Makeshift Spear EMP Trap [Rating: 36] Favorites ----------- Power Improved Ion Engine Engine Improved Ion Engine Power Core Nuclear Core Propulsion Light Treads Treads Light Treads Utility High-capacity Storage Unit Device Improved Heat Sink Storage High-capacity Storage Unit Processor Advanced Targeting Computer Protection Light Armor Plating Weapon Beam Rifle Energy Gun Beam Rifle Energy Cannon Ion Cannon Ballistic Gun Light Assault Rifle Special Weapon Mining Laser Piercing Weapon Makeshift Spear Build | -11 -10 -10 -10 -9 -8 ------- Run | Yrd Mat Min Exi Min Mat Slots Evolved 4 | . . . . . 4 Power . | . . . . . . Propulsion 1 | . . . . . 1 Utility 2 | . . . . . 2 Weapon 1 | . . . . . 1 Parts Attached 61 | 7 10 8 2 . 34 Power 4 | 1 . 1 . . 2 Engine 3 | 1 . 1 . . 1 Core 1 | . . . . . 1 Reactor . | . . . . . . Propulsion 13 | 2 . 1 . . 10 Treads 13 | 2 . 1 . . 10 Leg . | . . . . . . Wheel . | . . . . . . Hover . | . . . . . . Flight . | . . . . . . Utility 20 | 2 6 3 2 . 7 Device 6 | 1 3 . . . 2 Storage 4 | 1 . 1 2 . . Processor 1 | . . . . . 1 Hackware . | . . . . . . Protection 9 | . 3 2 . . 4 Artifact . | . . . . . . Weapon 24 | 2 4 3 . . 15 Energy Gun 8 | 1 1 3 . . 3 Energy Cannon 3 | . . . . . 3 Ballistic Gun 9 | 1 2 . . . 6 Ballistic Cannon . | . . . . . . Launcher . | . . . . . . Special Weapon 3 | . 1 . . . 2 Impact Weapon . | . . . . . . Slashing Weapon . | . . . . . . Piercing Weapon 1 | . . . . . 1 Special Melee Weapon . | . . . . . . Unidentified Prototypes 3 | . . . . . 3 Parts Lost 4 | . . 1 . . 3 Power 1 | . . . . . 1 Propulsion . | . . . . . . Utility 2 | . . 1 . . 1 Weapon 1 | . . . . . 1 Highest Loss Streak 2 | . . 1 . . 2 To Critical Strikes . | . . . . . . Average Slot Usage (%) 98 | . 100 99 100 100 97 Engine 10 | . 14 14 14 14 3 Core 1 | . . . . . 4 Treads 27 | . 28 28 28 28 27 Device 5 | . 12 2 . . 9 Storage 12 | . 14 14 14 14 9 Processor 3 | . . . . . 8 Protection 9 | . 1 10 14 14 8 Energy Gun 16 | . 4 15 28 28 14 Energy Cannon 1 | . . . . . 4 Ballistic Gun 7 | . 23 12 . . 5 Peak Build Rating 36 | 7 8 12 13 14 36 Average Rating 17 | 5 7 9 12 13 29 On Entrance 8 | . 7 8 11 13 14 Naked Turns . | . . . . . . Heaviest Build 68 | 12 13 36 56 56 68 Greatest Support 67 | 40 40 40 40 40 67 Greatest Overweight (x) 1 | . . . 1 1 1 Average Overweight (x) . | . . . . 1 . Largest Inventory Capacity 20 | 8 8 15 20 20 20 Average Capacity 16 | 7 8 12 16 20 20 Most Carried 20 | 2 8 15 15 19 20 Average Carried 14 | . 7 10 14 17 19 Final Capacity 20 | 8 8 15 20 20 20 Final Carried 19 | 2 8 14 15 19 16 Class Distribution -------------------- 41% | Scavenger-Mutant 27% | Mutant 15% | Scavenger-Skirmisher 15% | Skirmisher Dominant Class ---------------- Mutant | -10/Materials Scavenger-Mutant | -10/Mines Scavenger-Mutant | -10/Exiles Scavenger-Mutant | -9/Mines Scavenger-Skirmisher | -8/Materials Resources | -11 -10 -10 -10 -9 -8 ----------- Run | Yrd Mat Min Exi Min Mat Matter Collected 1547 | 230 255 502 20 10 530 Remotely . | . . . . . . Salvage Created 1402 | 35 255 135 . . 977 Parts 99 | 8 19 14 . 2 56 Haulers Intercepted 1 | . 1 . . . . Recyclers Shooed 2 | 1 . . . . 1 Parts Field Recycled . | . . . . . . Retrieved Matter . | . . . . . . Parts Self-Destructed . | . . . . . . Prevented . | . . . . . . Kills | -11 -10 -10 -10 -9 -8 ------- Run | Yrd Mat Min Exi Min Mat Combat Hostiles Destroyed 25 | . 3 5 . . 17 Guns 23 | . 3 5 . . 15 Cannons 1 | . . . . . 1 Classes Destroyed 11 | 1 4 1 . . 5 Worker 2 | . 1 . . . 1 Builder 4 | . . . . . 4 Tunneler 3 | 2 . . . 1 . Hauler 1 | . 1 . . . . Recycler 1 | . . . . . 1 Watcher 4 | . 2 . . . 2 Swarmer 7 | . . 3 . . 4 Grunt 10 | . 3 2 . . 5 Duelist 1 | . . . . . 1 Sentry 6 | . . . . . 6 Hunter 1 | . . . . . 1 Best Kill Streak 7 | 1 2 3 . 1 7 Combat Bots Only 4 | . 1 3 . . 4 Max Kills in Single Turn 2 | 1 1 1 . 1 2 Gunslinging . | . . . . . . Exploded . | . . . . . . Melee . | . . . . . . Uniques/NPCs Destroyed . | . . . . . . Combat | -11 -10 -10 -10 -9 -8 -------- Run | Yrd Mat Min Exi Min Mat Hostile Shots Fired 140 | . 15 34 . . 91 Missed 25 | . 1 8 . . 16 Damage Taken 1644 | . 189 257 . . 1198 Core 223 | . 20 57 . . 146 Absorbed by Shields . | . . . . . . Redirected to Shielding 12 | . 4 8 . . . Core Remaining (%) 84 | 100 . . . 69 . Volleys Fired 128 | 12 24 22 . . 70 Largest 3 | 2 2 2 . . 3 Hottest 172 | 70 100 40 . . 172 Shots Fired 262 | 24 47 44 . . 147 Gun 233 | 24 46 44 . . 119 Cannon 12 | . . . . . 12 Launcher . | . . . . . . Special 17 | . 1 . . . 16 Kinetic 171 | 12 46 44 . . 69 Thermal 91 | 12 1 . . . 78 Explosive . | . . . . . . Electromagnetic . | . . . . . . Robot Hit Streak 12 | 6 11 7 . . 12 Robot Miss Streak 6 | 6 3 4 . . 3 Penetration Max . | . . . . . . Secondary Targets 3 | . . 1 . . 2 Max Gunslinging Chain 1 | . . 1 . . 1 Shots Hit Robots 156 | 12 34 26 . . 84 Core Hits 72 | 5 13 9 . 1 44 Critical Kills . | . . . . . . Critical Parts Destroyed . | . . . . . . Critical Strikes 5 | . . . . . 5 Burn 5 | . . . . . 5 Melee Attacks . | . . . . . . Impact . | . . . . . . Slashing . | . . . . . . Piercing . | . . . . . . Sneak Attacks . | . . . . . . Combat Hostiles . | . . . . . . Follow-up Attacks . | . . . . . . Damage Inflicted 2196 | 120 355 273 . 4 1444 Guns 2046 | 120 355 273 . . 1298 Cannons 146 | . . . . . 146 Explosions . | . . . . . . Melee . | . . . . . . Ramming 4 | . . . . 4 . Kinetic 1424 | 57 355 273 . . 739 Thermal 768 | 63 . . . . 705 Explosive . | . . . . . . Electromagnetic . | . . . . . . Impact . | . . . . . . Slashing . | . . . . . . Piercing . | . . . . . . Highest Corruption . | . . . . . . Average Corruption . | . . . . . . Corruption Purged . | . . . . . . Corruption Blocked . | . . . . . . Overload Shots . | . . . . . . Overflow Damage . | . . . . . . Projectiles . | . . . . . . Explosions . | . . . . . . Melee . | . . . . . . Knockbacks . | . . . . . . Impact . | . . . . . . Kinetic . | . . . . . . Secondary . | . . . . . . Self-Inflicted Damage . | . . . . . . Shots . | . . . . . . Rammed 2 | . . . . 2 . Targets Rammed 3 | . . . . 3 . Kicked . | . . . . . . Crushed 1 | . . . . 1 . Highest Temperature 223 | 90 20 9 . . 223 Average Temperature 43 | 35 9 8 . . 53 Received Heat Transfer 615 | . 102 72 . . 441 Siege Activations . | . . . . . . Robots Corrupted . | . . . . . . Combat Hostiles . | . . . . . . Parts Fried . | . . . . . . Impact Corruptions . | . . . . . . Robots Melted 1 | . . . . . 1 Combat Hostiles 1 | . . . . . 1 Parts Melted 6 | . . . . . 6 Heat Transferred 2220 | 185 . . . . 2035 Parts Sabotaged . | . . . . . . Parts Stolen . | . . . . . . Parts Stripped . | . . . . . . Power Chain Reactions . | . . . . . . Alert | -11 -10 -10 -10 -9 -8 ------- Run | Yrd Mat Min Exi Min Mat Peak Influence 423 | 10 92 144 . 5 423 Initial 31 | . 6 31 . . . Average 77 | 3 39 31 . 2 149 Maximum Alert Level 2 | . . . . . 2 Low Security (%) 84 | 100 100 100 . 100 64 Level 1 13 | . . . . . 31 Level 2 1 | . . . . . 4 Level 3 . | . . . . . . Level 4 . | . . . . . . Level 5 . | . . . . . . High Security . | . . . . . . Max Security . | . . . . . . Squads Dispatched 3 | . . . . . 3 Investigation 2 | . . . . . 2 Extermination . | . . . . . . Reinforcement 1 | . . . . . 1 Assault . | . . . . . . Garrison . | . . . . . . Intercept . | . . . . . . Searches Triggered . | . . . . . . Construction Impeded . | . . . . . . Haulers Reinforced . | . . . . . . Active Scanning Responses . | . . . . . . Cargo Convoy Interrupts . | . . . . . . Stealth | -11 -10 -10 -10 -9 -8 --------- Run | Yrd Mat Min Exi Min Mat Distress Signals 3 | . . . . . 3 Communications Jammed . | . . . . . . Distress Signals . | . . . . . . Times Spotted 51 | . 11 6 . . 34 Peak Tracking Total 5 | . 2 2 . . 5 Tactical Retreats 4 | . 1 . . . 3 Traps | -11 -10 -10 -10 -9 -8 ------- Run | Yrd Mat Min Exi Min Mat Traps Triggered 1 | . . . . . 1 Indirectly . | . . . . . . Trap Hack Attempts . | . . . . . . Triggered . | . . . . . . Disarmed . | . . . . . . Reprogrammed . | . . . . . . Reused 2 | . . . . . 2 Traps Extracted . | . . . . . . Installed 3 | . . 1 . . 2 Triggered 2 | . . . . . 2 Most Traps Carried 3 | . . 3 2 2 2 Machines | -11 -10 -10 -10 -9 -8 ---------- Run | Yrd Mat Min Exi Min Mat Machines Disabled . | . . . . . . Max in Single Turn . | . . . . . . Garrison Access 1 | . . . . . 1 Machines Repaired . | . . . . . . Machines Dismantled . | . . . . . . Machines Sabotaged . | . . . . . . Overloaded Fab Kills . | . . . . . . Hacking | -11 -10 -10 -10 -9 -8 --------- Run | Yrd Mat Min Exi Min Mat Machines Accessed 15 | . 7 1 1 . 6 Terminals 11 | . 6 1 . . 4 Fabricators . | . . . . . . Repair Stations . | . . . . . . Recycling Units 1 | . 1 . . . . Scanalyzers 1 | . . . . . 1 Garrison Access 1 | . . . . . 1 Total Hacks 46 | . 20 4 1 . 21 Successful 26 | . 12 2 1 . 11 Failed 20 | . 8 2 . . 10 Catastrophic 1 | . 1 . . . . Database Lockouts . | . . . . . . Manual 34 | . 16 4 1 . 13 Terminals 37 | . 18 4 . . 15 Fabricators . | . . . . . . Repair Stations . | . . . . . . Recycling Units 2 | . 2 . . . . Scanalyzers 4 | . . . . . 4 Garrison Access 2 | . . . . . 2 Terminal Hacks 4 | . 2 . 1 . 1 Robot Analysis 1 | . 1 . . . . Locate Traps 1 | . 1 . . . . Recall Reinforcements 1 | . . . . . 1 Derelict Proto ID Bank 1 | . . . 1 . . Fabricator Hacks . | . . . . . . Repair Station Hacks . | . . . . . . Recycling Unit Hacks 1 | . 1 . . . . Retrieve Components 1 | . 1 . . . . Scanalyzer 4 | . . . . . 4 Insert Component 2 | . . . . . 2 Analyze 2 | . . . . . 2 Garrison Access Hacks 1 | . . . . . 1 Seal Access 1 | . . . . . 1 Unauthorized Hacks 16 | . 9 2 . . 5 Terminals 16 | . 9 2 . . 5 Track 1 | . . 1 . . . Botnet 3 | . 2 . . . 1 Disrupt 1 | . . 1 . . . Operators 2 | . 2 . . . . Skim 9 | . 5 . . . 4 Fabricators . | . . . . . . Repair Stations . | . . . . . . Recycling Units . | . . . . . . Scanalyzers . | . . . . . . Garrison Access . | . . . . . . Data Cores Recovered . | . . . . . . Used . | . . . . . . Hacking Detections 12 | . 7 1 . . 4 Full Trace Events 1 | . . . . . 1 Feedback Events . | . . . . . . Feedback Blocked . | . . . . . . Robot Schematics Acquired . | . . . . . . Robots Built . | . . . . . . Authchips . | . . . . . . Time . | . . . . . . Total Robot Build Rating . | . . . . . . Part Schematics Acquired 2 | . . . . . 2 Parts Built . | . . . . . . Authchips . | . . . . . . Time . | . . . . . . Total Part Build Rating . | . . . . . . Parts Repaired . | . . . . . . Time . | . . . . . . Parts Recycled . | . . . . . . Recycled Matter . | . . . . . . Retrieved Matter . | . . . . . . Retrieved Components 2 | . 2 . . . . Parts Scanalyzed 2 | . . . . . 2 Part Schematics Acquired 2 | . . . . . 2 Parts Damaged 1 | . . . . . 1 Bothacking | -11 -10 -10 -10 -9 -8 ------------ Run | Yrd Mat Min Exi Min Mat Used RIF Installer . | . . . . . . Robots Hacked . | . . . . . . Non-combat . | . . . . . . Combat . | . . . . . . Robot Hacks Applied . | . . . . . . Relay Couplers Released 3 | . . . . . 3 Machine Destruction 3 | . . . . . 3 Fabnet Peak Effective % . | . . . . . . Robots Rewired . | . . . . . . Allies Hacked . | . . . . . . Hacks Repelled . | . . . . . . Allies | -11 -10 -10 -10 -9 -8 -------- Run | Yrd Mat Min Exi Min Mat Total Allies . | . . . . . . Largest Group . | . . . . . . Highest-Rated Group . | . . . . . . Highest-Rated Ally . | . . . . . . Total Orders . | . . . . . . Ally Attacks . | . . . . . . Total Damage . | . . . . . . Kills . | . . . . . . Allies Corrupted . | . . . . . . Allies Melted . | . . . . . . Intel | -11 -10 -10 -10 -9 -8 ------- Run | Yrd Mat Min Exi Min Mat Robot Analysis Total 1 | . 1 . . . . Derelict Logs Recovered 3 | . . 1 . 2 . Drone Launches . | . . . . . . Drone Recoveries . | . . . . . . Exploration | -11 -10 -10 -10 -9 -8 ------------- Run | Yrd Mat Min Exi Min Mat Turns Passed 5356 | 143 781 928 627 854 2023 Spaces Moved 2461 | 63 414 530 353 350 751 Core 3 | 3 . . . . . Treads 2458 | 60 414 530 353 350 751 Legs . | . . . . . . Wheels . | . . . . . . Hover . | . . . . . . Flight . | . . . . . . Fastest Speed 50 | 50 160 160 160 240 145 Average Speed 177 | 154 160 160 176 240 171 Slowest Speed 240 | 160 160 160 240 240 240 Overloaded Moves . | . . . . . . Propulsion Burnouts . | . . . . . . Robots Hopped . | . . . . . . Cave-ins Triggered . | . . . . . . Exploration Rate (%) 60 | 5 67 93 70 85 43 Regions Visited 5 Branch Regions 3 Pre-discovered Areas 2 | . . 1 . 1 . Known Exits Taken . | . . . . . . Unknown Exits Taken 5 | 1 1 1 1 1 . Scrap Searched 4 | . . 2 . 2 . Spaces Dug 11 | . 1 . . . 10 Terrain Destroyed 22 | . 1 . . . 21 Melee . | . . . . . . Projectile 22 | . 1 . . . 21 AOE . | . . . . . . Terrain Rammed . | . . . . . . Walls Destroyed . | . . . . . . Machines Disabled . | . . . . . . Actions | -11 -10 -10 -10 -9 -8 --------- Run | Yrd Mat Min Exi Min Mat Total 3206 | 84 484 569 361 361 1347 Wait 488 | 1 28 2 . 5 452 Move 2456 | 62 413 529 352 349 751 Hop . | . . . . . . Pick Up 34 | 2 7 5 2 4 14 Fast Attach 9 | 7 . . . . 2 Attach 9 | . . 1 . . 8 Detach 2 | . . . . . 2 Swap 43 | . 10 7 2 . 24 Drop 30 | . 2 2 4 . 22 Fire 128 | 12 24 22 . . 70 Melee . | . . . . . . Ram . | . . . . . . Kick . | . . . . . . Crush 3 | . . . . 3 . Escape Stasis . | . . . . . . Rewire 1 | . . . 1 . . Trap 3 | . . 1 . . 2 Miscellaneous . | . . . . . . Route ------- -11/Scrapyard -10/Materials (discovered 4 exits: *Mat x2 / *Min x2) -10/Mines (discovered 3 exits: *Mat x2 / *Exi) -10/Exiles (discovered 2 exits: [*Min x2]) -9/Mines (discovered 2 exits: *Mat x2) -8/Materials (discovered 1 exit: [*Fac]) History --------- Turn | Location | Event 4 | -11/Scrapyard | Discovered new exit (range 15) 144 | -11/Scrapyard | Entered Materials 304 | -10/Materials | Build established: Mutant 447 | -10/Materials | Discovered new exit (range 6) 580 | -10/Materials | Learned Storage terminal intel 585 | -10/Materials | Discovered new exit (range 3) 631 | -10/Materials | Identified exit to Materials 671 | -10/Materials | Learned Storage emergency access door positions 700 | -10/Materials | Learned 4 Recycling zone layouts 716 | -10/Materials | Discovered new exit (range 14) 721 | -10/Materials | Learned 4 Subcaves zone layouts 734 | -10/Materials | Learned 4 Subcaves zone layouts 759 | -10/Materials | Learned location of 1 exit from Storage 792 | -10/Materials | Loaded intel: 2 recycling unit locations 836 | -10/Materials | Learned 4 Recycling zone layouts 925 | -10/Materials | Entered Mines 971 | -10/Mines | Met a Derelict bent on vengeance 1046 | -10/Mines | Assembled infested the area 1192 | -10/Mines | Received a Rocket Launcher from a helpful Derelict 1303 | -10/Mines | Joined a pair of Derelicts in attacking an 0b10 outpost 1427 | -10/Mines | Discovered exit to Materials (range 8) 1459 | -10/Mines | Learned Materials terminal intel 1468 | -10/Mines | Found a hidden stash of uninstalled traps 1623 | -10/Mines | Build established: Scavenger-Mutant 1638 | -10/Mines | Learned location of Storage (-8) 1786 | -10/Mines | Discovered exit to Materials (range 3) 1825 | -10/Mines | Deemed a non-threat by the Exiles lab entrance 1826 | -10/Mines | Discovered new exit (range 5) 1853 | -10/Mines | Entered Exiles 1879 | -10/Exiles | Discovered new exit (range 15) 1897 | -10/Exiles | Met 8R-AWN 1919 | -10/Exiles | Met EX-HEX 1967 | -10/Exiles | Met EX-BIN 1985 | -10/Exiles | Aligned with FarCom system 1986 | -10/Exiles | Given EX-Vault access code 2029 | -10/Exiles | Opened EX-Vault 2038 | -10/Exiles | Found YOLO Cannon 2071 | -10/Exiles | Warned to stay clear of 0b10 Research branches 2121 | -10/Exiles | Met EX-DEC 2444 | -10/Exiles | Discovered new exit (range 14) 2480 | -10/Exiles | Left Exiles lab with YOLO Cannon 2480 | -10/Exiles | Entered Mines 2717 | -9/Mines | A weapon hastily lodged in a ceiling crevice suddenly fell to the ground 3085 | -9/Mines | Learned Materials interactive machine intel 3135 | -9/Mines | Discovered new exit (range 16) 3152 | -9/Mines | Learned location of Zion (-7) 3310 | -9/Mines | Discovered new exit (range 11) 3334 | -9/Mines | Entered Materials 3334 | -8/Materials | Evolved 4 slots: Propulsion x1, Utility x2, Weapon x1 3335 | -8/Materials | Loaded intel: 18 interactive machine locations 3336 | -8/Materials | Loaded intel: 11 terminal locations 3835 | -8/Materials | Build established: Scavenger-Skirmisher 4393 | -8/Materials | Discovered new exit (range 16) 4690 | -8/Materials | Build established: Skirmisher 5357 | -8/Materials | Self-destructed Last Messages --------------- 05228_ U-05 Engineer destroyed. 05230_ K-01 Serf collects debris. 05231_ G-47 Trooper destroyed. 05233_ K-01 Serf collects debris. 05234_ U-05 Engineer destroyed. 05237_ K-01 Serf collects debris. 05251_ G-47 Trooper destroyed. 05251_ U-05 Engineer destroyed. 05256_ Acquired 59 matter. 05258_ Acquired 24 matter. 05261_ Acquired 43 matter. 05299_ Triggered Alarm Trap. 05299_ An alarm sounds. 05299_ ALERT: Alarm triggered, dispatching investigation squad. 05305_ Acquired Plasma Cutter. 05314_ K-01 Serf collects debris. 05318_ U-05 Engineer lays Concrete. 05347_ Acquired Prototype Energy Gun. 05347_ Identified Hvy. EM Shotgun. 05348_ Acquired Hvy. Assault Rifle. Map ----- +----------------------------------------------------+ | | | | | | | | | | | | | | | | | | | ?????????????????????????????????????????????????? | | ?????????????????????????????????????????????????? | | ?????????????????????????????????????????????????? | | ?????????????????????????????????????????????????? | | ?????????????????????????????????????????????????? | | ??????????????????????????????????#####??????????? | | ??????????????????????????????????# +??????????? | | ??????????????????????????????????# #??????????? | | ????????????????????????########### +??????????? | | ????????????????????????#! ! ! # #??????????? | | ????????????????????????# # ###########? | | ????????????????????????#[ # #? | | ????????????????????????# """ + #? | | ????????????????????????#/ """"" # ## | | ????????????????????????# """"" ########### # | | ????????????????????????# """"" #??????##?# # | | ????????????????????????#@ """ #??????# ## # | | ????????????????????????###########??????? # # | | ??????????????????????????????Y???????????? + + | | ???????????????????????"????????????????????# # | | ???????????????????????"???????????????????## ## | | ???????????????????????"???????????????????# # | | ???""??????????????????T???????????????????# [# | | ???"Y??????????????????"???????????????????# [% | | ???""??????????????????"???????????????????# =# | | ???????????????????????"???????????????????# ! # | | ???????????????????????????????????????????###!### | | ?????????????????????????????????????????????#%#?? | | ?????????????????????????????????????????????#|### | | ??????????????????????????????????????######## | | ??????????????????????????????????????# # | | ??????????????????g???????????????????# # | | ??????????????????????????????????????# #! | | ??????????????????????????????????????# +% | | ??????????????????????????????????????# # | | ??????????????????????????????????????# # | | ??????????????????????????????????????# #!! | | ??????????????????????????????????????########%= | | ????????????????????????????????### ???????##|%| | | ????????????????????????????????# ####### = | | ????????????????????????????????# !%*| ! * | +----------------------------------------------------+ Best States ------------- Heat Dissipation 45 Energy Generation 14 Energy Capacity 265 Matter Stores 300 Matter Capacity 300 Sight Range 16 Terrain Scan Density 10 Armor Coverage 225 Core Shielding 20 Evasion (%) 40 Targeting Accuracy 8 Recoil Reduction 3 Item Schematics ----------------- Plasma Cutter | -8/Materials | Scanalyzed Hcp. Matter Pod | -8/Materials | Scanalyzed Robot Schematics ------------------ None Fabricated ------------ Nothing Alien Tech Used ----------------- None Achievements -------------- None Challenges ------------ None Game ------ Seed CloakDisruptionCasing Manual? 0 Play Time 00:26:40 Cumulative 360.1 hours Start 2024.10.15 @ 15:30:33 End 2024.10.15 @ 15:58:32 Sessions 1 Manual Loads 0 Difficulty Rogue Special Mode None Game No. 273 Rogue 273 Adventurer 0 Explorer 0 Win Type - Total 5 Types 2/0/2/1/0/0/0/0/0 Lore% 75 Gallery% 81 Achievement% 65 Wizard Run 0 Options --------- Layout 2 ASCII 0 Keyboard 1 Movement Vi Keybinds 0 Fullscreen 2 Font 32/SmallcapsGlow Map View 77x44 Zoom Use 0% Tactical HUD 1 Map Filters NONE Filters NONE Steam 1 RUN: ce82af71-3f82-40ed-b32f-b077d658d313